bitfinex/quotes_ETHUSD_20230119
["timestamp","ask_amount","ask_price","bid_price","bid_amount"]
[1674133452556,13.91322461,1519.2,1518.9,2.74664384]
[1674133452762,13.22750244,1519.2,1518.9,2.74664384]
[1674133453139,13.22750244,1519.2,1518.9,1.63173351]
[1674133453352,13.91322461,1519.2,1518.9,1.63173351]
[1674133456766,21.52487281,1519.2,1518.9,1.63173351]
[1674133457446,20.49570461,1519.2,1518.9,0.08273351]
[1674133458654,21.52487281,1519.2,1518.9,0.08273351]
[1674133458901,2.83820945,1519.1,1518.9,0.08273351]
[1674133459108,13.16654,1519.0,1518.9,0.08273351]
[1674133459438,13.22908244,1519.0,1518.9,0.08273351]
[1674133459865,19.81235244,1519.0,1518.9,0.08273351]
[1674133462182,19.81235244,1519.0,1518.9,0.0792279]
[1674133464031,24.72335245,1519.0,1518.9,0.0792279]
[1674133464242,27.52888864,1519.0,1518.9,0.0792279]
[1674133466549,4.97354245,1519.0,1518.9,1.6362279]
[1674133466791,4.91100001,1519.0,1518.9,1.6362279]
[1674133471072,4.91100001,1519.0,1518.9,0.0792279]
[1674133471475,11.49427001,1519.0,1518.9,0.0792279]
[1674133471725,14.02910869,1519.0,1518.9,0.0792279]
[1674133472703,20.61237869,1519.0,1518.9,0.0792279]
[1674133472918,18.14008245,1519.0,1518.9,0.0792279]
[1674133473068,18.14008245,1519.0,1518.9,1.6332279]
[1674133473069,11.55681245,1519.0,1518.9,1.6332279]
[1674133473278,4.97354245,1519.0,1518.9,1.6332279]
[1674133473486,4.91100001,1519.0,1518.9,1.6332279]
[1674133476334,11.49427001,1519.0,1518.9,1.6332279]
[1674133476500,12.24253462,1519.0,1518.9,1.6332279]
[1674133477337,22.3710489,1519.0,1518.9,0.0792279]
[1674133477578,28.9543189,1519.0,1518.9,0.0792279]
[1674133477744,30.67029568,1519.0,1518.9,0.0792279]
[1674133477917,30.13502748,1519.0,1518.9,0.0792279]
[1674133478341,31.84998788,1519.0,1518.9,0.0792279]
[1674133478601,31.85132852,1519.0,1518.9,0.0792279]
[1674133478757,30.47745713,1519.0,1518.9,0.0792279]
[1674133480039,31.85088365,1519.0,1518.9,0.0792279]
[1674133481295,33.76920472,1519.0,1518.9,0.0792279]
[1674133481515,36.76920472,1519.0,1518.9,0.0792279]
[1674133481869,41.82620472,1519.0,1518.9,0.0792279]
[1674133482012,50.23884432,1519.0,1518.9,0.0792279]
[1674133482223,51.95457949,1519.0,1518.9,0.0792279]
[1674133482465,48.45457949,1519.0,1518.9,0.0792279]
[1674133483501,51.95457949,1519.0,1518.9,0.07701307]
[1674133483710,52.29649449,1519.0,1518.9,0.07701307]
[1674133483954,50.23884432,1519.0,1518.9,0.07701307]
[1674133484324,46.73884432,1519.0,1518.9,0.07701307]
[1674133484548,48.79649449,1519.0,1518.9,0.07701307]
[1674133484875,46.73884432,1519.0,1518.9,0.07701307]
[1674133485496,48.79649449,1519.0,1518.9,0.06931177]
[1674133486022,52.29649449,1519.0,1518.9,0.06931177]
[1674133486810,50.23884432,1519.0,1518.9,0.06931177]
[1674133487491,46.73884432,1519.0,1518.9,0.06931177]
[1674133487862,50.23884432,1519.0,1518.9,0.06931177]
[1674133488021,52.29649449,1519.0,1518.9,0.06931177]
[1674133488978,48.79649449,1519.0,1518.9,0.06931177]
[1674133489629,52.29649449,1519.0,1518.9,0.06931177]
[1674133490172,48.79649449,1519.0,1518.9,0.06931177]
[1674133491289,46.73884432,1519.0,1518.9,0.06931177]
[1674133492324,48.45225803,1519.0,1518.9,0.06931177]
[1674133492855,48.45217809,1519.0,1518.9,0.06931177]
[1674133493102,46.73884432,1519.0,1518.9,0.06931177]
[1674133493530,48.45215921,1519.0,1518.9,0.06931177]
[1674133494174,53.65084432,1519.0,1518.9,0.06931177]
[1674133494325,53.88084432,1519.0,1518.9,0.06931177]
[1674133495519,53.88084432,1519.0,1518.9,0.0623806]
[1674133495860,55.36409399,1519.0,1518.9,0.0623806]
[1674133496175,50.5153464,1519.0,1518.9,0.0623806]
[1674133496425,37.24962504,1519.0,1518.9,1.3793806]
[1674133496578,18.82545505,1519.0,1518.9,1.3793806]
[1674133497800,18.14008245,1519.0,1518.9,1.3793806]
[1674133498115,18.82545505,1519.0,1518.9,1.3793806]
[1674133498643,25.40872505,1519.0,1518.9,0.0623806]
[1674133498887,32.1395164,1519.0,1518.9,0.0623806]
[1674133499093,37.3718085,1519.0,1518.9,0.0623806]
[1674133499328,38.20829347,1519.0,1518.9,0.0623806]
[1674133499696,33.29729346,1519.0,1518.9,0.0623806]
[1674133500758,39.889428,1519.0,1518.9,0.0623806]
[1674133500955,32.8158692,1519.0,1518.9,0.0623806]
[1674133501165,32.3219692,1519.0,1518.9,0.0623806]
[1674133501442,22.7386992,1519.0,1518.9,1.3793806]
[1674133501625,14.94248634,1519.0,1518.9,1.3793806]
[1674133501953,13.91446958,1519.0,1518.9,1.3793806]
[1674133502744,13.91446958,1519.0,1518.9,0.0623806]
[1674133503415,13.91446958,1519.0,1518.9,1.3793806]
[1674133503616,13.91446958,1519.0,1518.9,0.0623806]
[1674133504061,13.22908244,1519.0,1518.9,0.0623806]
[1674133504422,13.91446958,1519.0,1518.9,0.0623806]
[1674133505793,20.8403692,1519.0,1518.9,0.0623806]
[1674133506049,23.71978854,1519.0,1518.9,0.0623806]
[1674133506489,29.06755325,1519.0,1518.9,0.0623806]
[1674133506644,36.24766904,1519.0,1518.8,0.0937298]
[1674133506962,28.41399601,1518.9,1518.8,0.0937298]
[1674133507161,41.8009762,1518.9,1518.8,0.0937298]
[1674133507573,40.42985778,1518.9,1518.8,0.08435683]
[1674133507778,42.14388735,1518.9,1518.8,0.08435683]
[1674133508198,44.19078735,1518.9,1518.8,0.08435683]
[1674133508414,42.47675778,1518.9,1518.8,0.08435683]
[1674133508832,44.19087001,1518.9,1518.8,0.08435683]
[1674133509044,42.47675778,1518.9,1518.8,0.08435683]
[1674133511459,44.19122425,1518.9,1518.8,0.08435683]
[1674133511665,42.47675778,1518.9,1518.8,0.08435683]
[1674133512148,40.92375778,1518.9,1518.8,0.08435683]
[1674133513197,42.63829883,1518.9,1518.8,0.08435683]
[1674133514844,42.47675778,1518.9,1518.8,0.08435683]
[1674133516879,44.53440795,1518.9,1518.8,0.08435683]
[1674133517467,44.53440795,1518.9,1518.8,0.07592115]
[1674133527647,44.53440795,1518.9,1518.8,0.06832904]
[1674133530515,41.98140795,1518.9,1518.8,0.06832904]
[1674133530882,41.63888844,1518.9,1518.8,0.06832904]
[1674133531569,39.92375778,1518.9,1518.8,0.06832904]
[1674133532001,41.98140795,1518.9,1518.8,0.06832904]
[1674133532617,47.03440795,1518.9,1518.8,0.06832904]
[1674133532848,44.97675778,1518.9,1518.8,0.04008021]
[1674133533308,41.68811264,1518.9,1518.8,0.04008021]
[1674133534309,43.74600376,1518.9,1518.8,0.04008021]
[1674133535572,43.74264693,1518.9,1518.8,0.04008021]
[1674133537592,43.74264693,1518.9,1518.8,0.03607219]
[1674133540058,39.18964693,1518.9,1518.8,0.03607219]
[1674133540232,31.81751806,1518.9,1518.8,0.03607219]
[1674133541050,33.87540918,1518.9,1518.8,0.03607219]
[1674133541596,36.87540918,1518.9,1518.8,0.03607219]
[1674133547418,38.78087816,1518.9,1518.8,0.03607219]
[1674133547564,44.14551803,1518.9,1518.8,0.03246498]
[1674133547777,47.64551803,1518.9,1518.8,0.03246498]
[1674133547984,45.70251803,1518.9,1518.8,0.03246498]
[1674133549622,42.59251803,1518.9,1518.8,0.03246498]
[1674133549792,40.18215793,1518.9,1518.8,0.03246498]
[1674133550014,42.58854522,1518.9,1518.8,0.03246498]
[1674133551161,40.18215793,1518.9,1518.8,0.03246498]
[1674133552819,42.58832635,1518.9,1518.8,0.03246498]
[1674133557659,42.58832635,1518.9,1518.8,0.02921849]
[1674133559754,42.58855596,1518.9,1518.8,0.02921849]
[1674133560170,42.58839487,1518.9,1518.8,0.02921849]
[1674133560432,40.18215793,1518.9,1518.8,0.02921849]
[1674133561391,41.73915793,1518.9,1518.8,0.02921849]
[1674133561916,41.73915793,1518.9,1518.8,0.01715082]
[1674133563274,44.1450601,1518.9,1518.8,0.01715082]
[1674133563499,42.5880601,1518.9,1518.8,0.01715082]
[1674133567670,42.5880601,1518.9,1518.8,0.01515082]
[1674133569425,44.1450601,1518.9,1518.8,0.01515082]
[1674133571150,45.23915793,1518.9,1518.7,0.09443431]
[1674133571495,15.99309814,1518.8,1518.6,0.10452567]
[1674133571649,62.87942294,1518.7,1518.6,0.10452567]
[1674133571853,72.75653538,1518.7,1518.6,0.10452567]
[1674133572089,72.75653538,1518.7,1518.6,5.67e-06]
[1674133572401,72.75653538,1518.7,1518.3,0.10452567]
[1674133572402,9.469,1518.6,1518.3,0.10452567]
[1674133572639,31.17722759,1518.4,1518.3,0.10452567]
[1674133572827,38.38177003,1518.4,1518.3,0.10452567]
[1674133573043,43.44225367,1518.4,1518.3,0.10452567]
[1674133573285,34.75825367,1518.4,1518.3,0.10452567]
[1674133573438,46.2954411,1518.4,1518.3,0.10452567]
[1674133573643,48.35592474,1518.4,1518.3,0.10452567]
[1674133574400,46.2954411,1518.4,1518.3,0.10452567]
[1674133576314,48.01055,1518.4,1518.3,0.10452567]
[1674133576977,46.2954411,1518.4,1518.3,0.10452567]
[1674133578179,48.00980039,1518.4,1518.3,0.10452567]
[1674133580327,49.38099503,1518.4,1518.3,0.10452567]
[1674133580691,48.00980039,1518.4,1518.3,0.10452567]
[1674133582235,46.2954411,1518.4,1518.3,0.09407311]
[1674133582383,48.00873104,1518.4,1518.3,0.09407311]
[1674133582922,48.35592474,1518.4,1518.3,0.09407311]
[1674133583354,49.90292474,1518.4,1518.3,0.09407311]
[1674133584608,49.90292474,1518.4,1518.3,0.05410242]
[1674133584863,1.0,1518.3,1518.2,0.10453044]
[1674133585074,32.07719907,1518.3,1518.2,0.10453044]
[1674133585378,32.13974151,1518.3,1518.2,0.10453044]
[1674133585745,30.42769864,1518.3,1518.2,0.10453044]
[1674133586011,36.11069864,1518.3,1518.2,0.10453044]
[1674133586532,45.31318228,1518.3,1518.1,0.11589529]
[1674133586750,27.89789937,1518.2,1518.1,0.11589529]
[1674133586956,30.96044181,1518.2,1518.1,0.11589529]
[1674133587322,30.94789937,1518.2,1518.1,0.11589529]
[1674133587531,38.10589937,1518.2,1518.1,0.11589529]
[1674133587805,38.10589937,1518.2,1517.9,0.016]
[1674133588109,32.23290092,1518.1,1517.9,0.016]
[1674133588268,39.21090092,1518.1,1517.9,0.016]
[1674133588478,39.44090092,1518.1,1517.6,8.118]
[1674133588740,40.99390092,1518.1,1517.6,8.118]
[1674133588955,42.70527178,1518.1,1517.6,8.118]
[1674133590110,31.52890092,1518.1,1517.6,8.116]
[1674133590322,32.55528088,1518.1,1517.6,8.118]
[1674133591605,31.18625749,1518.1,1517.6,8.118]
[1674133591793,30.95625749,1518.1,1517.6,8.118]
[1674133592193,30.95625749,1518.1,1517.7,1.0]
[1674133592409,31.64014859,1518.1,1517.7,1.0]
[1674133592612,30.61376863,1518.1,1517.7,1.0]
[1674133594552,27.14566755,1518.1,1517.7,2.557]
[1674133594765,26.80312959,1518.1,1517.7,4.927]
[1674133594982,26.80312959,1518.1,1517.7,4.993]
[1674133595822,26.80312959,1518.1,1517.7,0.066]
[1674133595970,26.80312959,1518.1,1517.6,12.034]
[1674133596180,23.511382,1518.1,1517.7,2.557]
[1674133596442,22.82754,1518.1,1517.7,4.924]
[1674133596653,22.82754,1518.1,1517.7,4.99]
[1674133598035,22.82754,1518.1,1517.8,1.543]
[1674133599150,23.511382,1518.1,1517.7,3.99]
[1674133599393,27.4726722,1518.1,1517.7,3.924]
[1674133599611,27.4726722,1518.1,1517.7,4.924]
[1674133599834,27.4726722,1518.1,1517.7,3.99]
[1674133599991,27.4726722,1518.1,1517.7,4.924]
[1674133600204,27.4726722,1518.1,1517.7,4.99]
[1674133602198,27.4726722,1518.1,1517.7,3.99]
[1674133602459,27.4726722,1518.1,1517.7,3.924]
[1674133602679,27.4726722,1518.1,1517.7,4.924]
[1674133602830,27.4726722,1518.1,1517.7,4.99]
[1674133604231,27.4726722,1518.1,1517.7,1.623]
[1674133604425,23.511382,1518.1,1517.7,1.557]
[1674133604631,23.511382,1518.1,1517.9,1.545]
[1674133606079,22.82754,1518.1,1518.0,1.554]
[1674133606350,23.511382,1518.1,1518.0,1.554]
[1674133606925,22.82754,1518.1,1518.0,1.554]
[1674133607613,13.24036,1518.1,1518.0,3.108]
[1674133607803,6.65318,1518.1,1518.0,3.2634]
[1674133608185,0.066,1518.1,1518.0,3.2634]
[1674133608394,19.82668,1518.2,1518.0,3.2634]
[1674133608642,19.82668,1518.2,1518.1,1.543]
[1674133609796,19.82668,1518.2,1518.1,1.92060289]
[1674133613324,20.510522,1518.2,1518.1,1.92060289]
[1674133614206,19.82668,1518.2,1518.1,1.92060289]
[1674133615044,20.510522,1518.2,1518.1,1.92060289]
[1674133615899,21.53690196,1518.2,1518.1,0.37760289]
[1674133616254,23.69059216,1518.2,1518.1,0.37760289]
[1674133616468,22.6642122,1518.2,1518.1,0.37760289]
[1674133617374,6.65274,1518.2,1518.1,1.92060289]
[1674133617589,0.066,1518.2,1518.1,1.92060289]
[1674133617831,13.922842,1518.3,1518.1,1.92060289]
[1674133618047,13.922842,1518.3,1518.2,1.544]
[1674133618518,0.066,1518.3,1518.2,1.73616029]
[1674133618726,6.65217,1518.4,1518.2,1.73616029]
[1674133618993,6.65217,1518.4,1518.3,1.557]
[1674133620206,7.336012,1518.4,1518.3,1.557]
[1674133621076,6.65217,1518.4,1518.3,1.557]
[1674133621267,0.066,1518.4,1518.3,3.28891603]
[1674133621476,0.066,1518.5,1518.3,3.28891603]
[1674133621706,7.335272,1518.6,1518.4,1.554]
[1674133621881,7.335272,1518.6,1518.5,1.6994]
[1674133623034,7.335272,1518.6,1518.5,1.544]
[1674133623249,7.335272,1518.6,1518.4,1.557]
[1674133623455,13.920482,1518.6,1518.4,1.557]
[1674133623668,21.53207196,1518.6,1518.3,1.55]
[1674133623911,0.683842,1518.5,1518.2,9.5443]
[1674133624130,13.17174,1518.4,1518.2,9.5443]
[1674133624350,13.23774,1518.4,1518.2,1.623]
[1674133624521,13.921582,1518.4,1518.2,1.557]
[1674133625515,20.507452,1518.4,1518.1,11.09370289]
[1674133625705,22.6608022,1518.4,1518.1,1.98660289]
[1674133625878,22.6608022,1518.4,1518.1,1.92060289]
[1674133627707,22.6608022,1518.4,1518.1,1.91682778]
[1674133628237,23.79919959,1518.4,1518.1,1.91682778]
[1674133628391,0.683842,1518.3,1518.1,0.37382778]
[1674133628603,19.76022,1518.2,1518.1,0.37382778]
[1674133628868,6.65274,1518.2,1518.1,0.37382778]
[1674133629188,6.65274,1518.2,1518.1,1.91682778]
[1674133629719,6.65274,1518.2,1518.1,2.27001056]
[1674133630072,0.066,1518.2,1518.1,2.27001056]
[1674133630281,6.65234,1518.3,1518.1,2.27001056]
[1674133630492,6.65234,1518.3,1518.2,1.557]
[1674133631861,0.066,1518.3,1518.2,1.557]
[1674133632231,13.23812,1518.4,1518.2,1.74801828]
[1674133632401,13.23812,1518.4,1518.3,1.557]
[1674133633981,0.066,1518.4,1518.3,1.557]
[1674133634215,0.066,1518.5,1518.3,3.101]
[1674133634549,14.414452,1518.6,1518.4,1.8671]
[1674133637051,7.829142,1518.6,1518.4,1.8671]
[1674133638668,7.335142,1518.6,1518.4,1.8671]
[1674133638879,6.6513,1518.6,1518.4,1.8671]
[1674133639395,7.335142,1518.6,1518.4,1.8671]
[1674133639551,6.6513,1518.6,1518.4,1.8671]
[1674133639762,7.335142,1518.6,1518.4,1.8671]
[1674133641814,6.6513,1518.6,1518.4,1.8671]
[1674133642485,0.066,1518.6,1518.5,4.46471]
[1674133642620,9.171442,1518.7,1518.5,4.46471]
[1674133643551,9.171442,1518.7,1518.5,3.05271]
[1674133644442,15.756022,1518.7,1518.5,1.50371]
[1674133644657,15.756022,1518.7,1518.5,1.44965288]
[1674133645907,15.756022,1518.7,1518.5,2.859]
[1674133646289,0.749842,1518.7,1518.5,2.859]
[1674133646645,15.43900196,1518.8,1518.5,2.859]
[1674133646795,0.683842,1518.7,1518.5,2.859]
[1674133647009,0.683842,1518.7,1518.5,4.499682]
[1674133647511,0.749842,1518.8,1518.6,2.557]
[1674133647807,0.749842,1518.8,1518.6,1.557]
[1674133647808,0.683842,1518.8,1518.6,1.557]
[1674133649462,18.22224055,1518.9,1518.6,1.557]
[1674133649684,18.22224055,1518.9,1518.7,0.1557]
[1674133649859,18.22224055,1518.9,1518.6,1.0]
[1674133650082,2.55166055,1518.9,1518.6,15.727]
[1674133650299,1.45928059,1518.9,1518.6,15.793]
[1674133650543,1.45928059,1518.9,1518.7,1.5793]
[1674133650711,2.48566055,1518.9,1518.7,1.5793]
[1674133651366,1.45928059,1518.9,1518.7,1.5793]
[1674133652334,0.96538059,1518.9,1518.7,8.16387]
[1674133652640,1.99176055,1518.9,1518.7,1.6453]
[1674133652816,1.99176055,1518.9,1518.6,13.23598]
[1674133653389,0.96538059,1518.9,1518.6,13.23598]
[1674133653909,0.28153859,1518.9,1518.6,13.23598]
[1674133654514,0.96538059,1518.9,1518.6,13.23598]
[1674133654689,0.96538059,1518.9,1518.7,1.323598]
[1674133654690,0.28153859,1518.9,1518.7,1.323598]
[1674133655988,0.96538059,1518.9,1518.7,1.323598]
[1674133656182,0.96538059,1518.9,1518.6,21.36281]
[1674133656386,0.96538059,1518.9,1518.6,19.82081]
[1674133656601,0.96538059,1518.9,1518.6,0.066]
[1674133656602,7.54910059,1518.9,1518.6,0.066]
[1674133656841,8.64148055,1518.9,1518.5,31.39605]
[1674133657163,15.22520055,1518.9,1518.5,24.81073]
[1674133657482,17.54996932,1518.9,1518.5,18.2255]
[1674133657721,0.683842,1518.8,1518.5,18.2255]
[1674133657928,6.58457,1518.7,1518.5,18.2255]
[1674133658120,6.65057,1518.7,1518.5,0.066]
[1674133658452,6.65057,1518.7,1518.4,6.65157]
[1674133658600,8.1450802,1518.7,1518.4,6.65157]
[1674133658816,8.8289222,1518.7,1518.4,6.65157]
[1674133659288,8.8289222,1518.7,1518.4,0.066]
[1674133659613,15.4134922,1518.7,1518.3,13.23812]
[1674133663469,13.918982,1518.7,1518.3,16.277446]
[1674133666181,13.918982,1518.7,1518.3,16.27358048]
[1674133666974,1.71022196,1518.6,1518.3,0.066]
[1674133667287,13.854722,1518.5,1518.2,0.066]
[1674133667436,0.683842,1518.4,1518.1,9.9428]
[1674133667649,0.683842,1518.4,1518.1,0.066]
[1674133667650,2.8864962,1518.4,1518.1,0.066]
[1674133667858,6.58631,1518.3,1518.0,7.7834]
[1674133668114,13.23862,1518.3,1518.0,7.7834]
[1674133668495,13.23862,1518.3,1518.0,0.066]
[1674133668713,13.23862,1518.3,1517.9,29.36371]
[1674133668714,6.65231,1518.3,1517.9,29.36371]
[1674133669049,6.65231,1518.3,1518.0,2.936371]
[1674133669251,6.65231,1518.3,1518.0,9.523921]
[1674133669591,6.65231,1518.3,1518.0,9.589921]
[1674133670550,6.65231,1518.3,1518.0,0.066]
[1674133670699,6.65231,1518.3,1517.9,16.18801]
[1674133671342,13.23862,1518.3,1517.9,16.18801]
[1674133675361,2.240842,1518.2,1517.9,0.066]
[1674133675577,2.240842,1518.2,1517.7,0.12138573]
[1674133675578,19.9856242,1518.1,1517.7,0.12138573]
[1674133675909,6.8772642,1518.1,1517.7,6.71027573]
[1674133676084,6.65318,1518.1,1517.7,6.77627573]
[1674133676296,6.65318,1518.1,1517.8,1.0]
[1674133676821,6.65318,1518.1,1517.8,1.37105297]
[1674133677063,6.65318,1518.1,1517.8,2.34148584]
[1674133678235,6.65318,1518.1,1517.8,0.37105297]
[1674133678810,19.82754,1518.1,1517.8,0.37105297]
[1674133679083,20.32164,1518.1,1517.8,0.37105297]
[1674133679442,28.94924,1518.1,1517.8,0.37105297]
[1674133680139,1.0,1518.0,1517.8,0.37105297]
[1674133680442,13.17608,1517.9,1517.8,0.37105297]
[1674133680602,19.83012,1517.9,1517.8,0.37105297]
[1674133681076,20.32432,1517.9,1517.8,0.37105297]
[1674133682168,21.88132,1517.9,1517.8,0.37105297]
[1674133682443,25.17306759,1517.9,1517.8,0.37105297]
[1674133682614,27.96104254,1517.9,1517.8,0.37105297]
[1674133684608,30.96104254,1517.9,1517.8,0.37105297]
[1674133686586,30.96104254,1517.9,1517.8,0.3672551]
[1674133688730,26.11229495,1517.9,1517.8,0.3672551]
[1674133690319,23.32432,1517.9,1517.8,0.3672551]
[1674133690529,20.32432,1517.9,1517.8,0.3672551]
[1674133690909,13.73628,1517.9,1517.8,0.3672551]
[1674133692471,20.32432,1517.9,1517.8,0.3672551]
[1674133695130,19.83012,1517.9,1517.8,0.3672551]
[1674133697146,13.24208,1517.9,1517.8,0.3672551]
[1674133697363,0.066,1517.9,1517.8,1.6842551]
[1674133697554,7.14784,1518.0,1517.8,1.86481918]
[1674133697932,0.066,1518.0,1517.8,8.45319918]
[1674133698162,6.65317,1518.2,1517.8,16.64967918]
[1674133698353,6.65317,1518.2,1517.9,1.66496792]
[1674133698729,7.14727,1518.2,1517.9,8.25297792]
[1674133698925,7.14727,1518.2,1517.9,8.31897792]
[1674133699628,7.14727,1518.2,1517.9,1.73096792]
[1674133699845,7.14727,1518.2,1517.9,1.66496792]
[1674133700051,7.14727,1518.2,1518.0,0.16649679]
[1674133700876,7.14727,1518.2,1517.9,1.66496792]
[1674133705392,7.14727,1518.2,1517.8,13.79050918]
[1674133706067,0.5601,1518.2,1517.9,1.0]
[1674133706236,0.4941,1518.2,1517.9,7.58789]
[1674133706466,0.4941,1518.2,1517.9,7.65389]
[1674133706812,31.84722,1518.3,1518.0,7.352889]
[1674133706813,17.25392,1518.3,1518.0,7.352889]
[1674133707032,17.25392,1518.3,1518.0,7.418889]
[1674133708067,0.066,1518.3,1518.0,22.151109]
[1674133708391,6.65168,1518.5,1518.2,1.55]
[1674133708582,6.65168,1518.5,1518.2,1.54733433]
[1674133708795,7.14568,1518.5,1518.2,1.54733433]
[1674133709197,7.14568,1518.5,1518.1,23.8149109]
[1674133709405,7.829522,1518.5,1518.1,22.2719109]
[1674133709727,19.59289416,1518.5,1518.1,6.65284]
[1674133710077,1.0,1518.4,1518.1,0.066]
[1674133710413,6.58631,1518.3,1518.0,8.1684]
[1674133710565,13.23862,1518.3,1518.0,8.1684]
[1674133711102,13.23862,1518.3,1518.0,0.066]
[1674133711325,1.323862,1518.2,1517.9,6.65383]
[1674133712389,20.509172,1518.3,1517.9,6.65383]
[1674133712603,19.82533,1518.3,1517.9,6.65383]
[1674133712771,20.509172,1518.3,1517.9,6.96287621]
[1674133715167,13.23862,1518.3,1517.9,6.96287621]
[1674133717357,3.29174759,1518.2,1517.9,0.37504621]
[1674133717667,13.66856,1518.1,1517.9,0.30904621]
[1674133717820,20.32174,1518.1,1517.9,0.30904621]
[1674133718836,20.32174,1518.1,1517.7,0.12138573]
[1674133719044,20.9949941,1518.1,1517.7,0.12138573]
[1674133719578,23.2358361,1518.1,1517.7,0.12138573]
[1674133719728,1.0,1518.0,1517.7,0.12138573]
[1674133720103,6.58804,1517.9,1517.7,0.12138573]
[1674133720245,6.65404,1517.9,1517.7,0.12138573]
[1674133722389,9.467727,1517.9,1517.7,0.12138573]
[1674133723319,6.65404,1517.9,1517.7,0.12138573]
[1674133725018,0.066,1517.9,1517.7,6.71021573]
[1674133725205,8.3732,1518.0,1517.7,13.36512573]
[1674133727242,8.3732,1518.0,1517.7,19.95403573]
[1674133727471,8.3732,1518.0,1517.8,1.99540357]
[1674133727682,8.3732,1518.0,1517.8,9.58366357]
[1674133727899,0.066,1518.0,1517.8,16.23814357]
[1674133728223,0.4942,1518.1,1517.8,24.37062357]
[1674133728395,0.4941,1518.2,1517.9,15.61265236]
[1674133728602,0.4941,1518.2,1517.9,27.10443995]
[1674133728866,9.019542,1518.3,1518.0,1.23]
[1674133728867,8.8298,1518.3,1518.0,1.23]
[1674133729025,8.8298,1518.3,1518.1,6.58718]
[1674133729383,8.8298,1518.3,1518.1,6.65318]
[1674133729384,0.5601,1518.3,1518.1,6.65318]
[1674133729538,0.4941,1518.3,1518.1,6.65318]
[1674133730186,0.4941,1518.3,1518.1,7.65318]
[1674133730398,0.4941,1518.3,1518.1,6.65318]
[1674133730630,0.4941,1518.3,1518.1,9.0965094]
[1674133731457,1.177942,1518.4,1518.1,9.0965094]
[1674133732088,0.683842,1518.4,1518.1,9.0965094]
[1674133732693,0.683842,1518.4,1518.1,6.65093224]
[1674133733433,1.71022196,1518.4,1518.1,6.65093224]
[1674133733888,0.683842,1518.4,1518.1,6.65093224]
[1674133736083,0.683842,1518.4,1518.1,7.65093224]
[1674133736537,0.683842,1518.4,1518.1,13.23811224]
[1674133736685,0.683842,1518.4,1518.2,1.32381122]
[1674133736896,1.77622196,1518.5,1518.2,3.29174759]
[1674133737152,1.77622196,1518.6,1518.3,1.772]
[1674133737483,0.683842,1518.6,1518.4,6.58587]
[1674133737794,0.683842,1518.6,1518.4,6.65187]
[1674133739310,0.683842,1518.5,1518.4,6.65187]
[1674133742989,0.683842,1518.5,1518.4,0.066]
[1674133743354,0.683842,1518.5,1518.3,6.816]
[1674133743355,0.9548642,1518.5,1518.3,0.066]
[1674133743671,0.9548642,1518.5,1518.2,13.23915]
[1674133745610,0.683842,1518.5,1518.2,13.23915]
[1674133749519,8.36128196,1518.6,1518.2,13.23915]
[1674133750176,7.334902,1518.6,1518.2,13.23915]
[1674133751665,8.36128196,1518.6,1518.2,13.23915]
[1674133752406,7.334902,1518.6,1518.2,19.82589]
[1674133752564,7.334902,1518.6,1518.2,23.387553]
[1674133754447,8.36128196,1518.6,1518.2,19.82589]
[1674133754653,7.334902,1518.6,1518.2,19.82589]
[1674133754918,8.36128196,1518.6,1518.2,19.82589]
[1674133755345,7.334902,1518.6,1518.2,19.82589]
[1674133755661,0.749842,1518.6,1518.2,19.82589]
[1674133755879,0.683842,1518.6,1518.3,1.0]
[1674133756026,0.683842,1518.6,1518.3,7.58617]
[1674133756237,0.683842,1518.6,1518.3,7.65217]
[1674133756609,9.846042,1518.7,1518.4,1.557]
[1674133756826,9.352042,1518.7,1518.5,6.58544]
[1674133757027,9.352042,1518.7,1518.5,7.65144]
[1674133757197,9.352042,1518.7,1518.5,6.65144]
[1674133757552,0.749842,1518.7,1518.5,6.65144]
[1674133757767,0.683842,1518.7,1518.5,6.65144]
[1674133758759,0.683842,1518.7,1518.5,13.23688]
[1674133758969,12.80525188,1518.8,1518.5,16.31309954]
[1674133759215,12.80525188,1518.8,1518.5,22.89853954]
[1674133762285,0.683842,1518.7,1518.5,22.89853954]
[1674133763116,12.80525188,1518.8,1518.5,22.89853954]
[1674133763960,11.77887192,1518.8,1518.5,22.89853954]
[1674133764129,0.683842,1518.7,1518.5,22.89853954]
[1674133765221,0.683842,1518.7,1518.5,19.82232]
[1674133766279,1.71022196,1518.7,1518.5,19.82232]
[1674133767060,0.683842,1518.6,1518.5,19.82232]
[1674133767274,0.683842,1518.6,1518.5,20.05232]
[1674133775523,1.71022196,1518.7,1518.5,20.05232]
[1674133775735,1.71022196,1518.7,1518.5,22.31425354]
[1674133775886,0.683842,1518.6,1518.5,22.31425354]
[1674133778362,0.683842,1518.6,1518.5,22.08425354]
[1674133780278,1.71022196,1518.7,1518.5,22.08425354]
[1674133780484,1.71022196,1518.7,1518.5,19.82232]
[1674133780673,0.683842,1518.6,1518.5,19.82232]
[1674133781236,1.71022196,1518.6,1518.5,6.65144]
[1674133781418,0.683842,1518.6,1518.5,6.65144]
[1674133781846,1.71022196,1518.6,1518.5,6.65144]
[1674133782988,2.01814649,1518.6,1518.5,6.65144]
[1674133783401,2.01814649,1518.6,1518.5,0.066]
[1674133783402,1.33430449,1518.6,1518.5,0.066]
[1674133783615,2.02129619,1518.6,1518.4,13.23739]
[1674133783939,0.6869917,1518.5,1518.4,13.23739]
[1674133785502,0.6869917,1518.5,1518.4,6.65167]
[1674133785718,1.71337166,1518.6,1518.4,0.066]
[1674133786034,0.6869917,1518.5,1518.3,27.94354]
[1674133786690,0.6869917,1518.5,1518.3,19.82404]
[1674133787673,0.6869917,1518.5,1518.3,6.6519]
[1674133789861,0.6869917,1518.5,1518.3,13.23821]
[1674133790571,1.71337166,1518.6,1518.3,13.23821]
[1674133791341,0.6869917,1518.5,1518.3,13.23821]
[1674133792717,2.02161117,1518.5,1518.3,13.23821]
[1674133793295,1.71337166,1518.5,1518.3,13.23821]
[1674133793507,0.6869917,1518.5,1518.3,13.23821]
[1674133794091,0.6869917,1518.5,1518.3,23.11626759]
[1674133794307,1.71337166,1518.6,1518.3,23.11626759]